bitfinex/quotes_SOLUSD_20251124
["timestamp","ask_amount","ask_price","bid_price","bid_amount"]
[1764025632658,3.18,139.17,139.16,63.16]
[1764025633949,3.18,139.17,139.16,62.5]
[1764025634139,3.88,139.17,139.16,62.5]
[1764025634647,3.18,139.17,139.16,62.5]
[1764025635632,3.18,139.17,139.16,63.16]
[1764025636358,8.80994492,139.21,139.16,75.90537496]
[1764025636546,3.18,139.2,139.17,0.66]
[1764025636852,3.18,139.2,139.18,2.77970099]
[1764025637350,3.18,139.2,139.18,3.43970099]
[1764025637853,3.18,139.2,139.19,0.66]
[1764025638043,3.18,139.2,139.18,2.77970099]
[1764025638249,3.18,139.2,139.18,3.43970099]
[1764025638450,3.18,139.2,139.18,10.62450021]
[1764025638642,3.18,139.2,139.19,3.43970099]
[1764025639629,3.18,139.2,139.19,0.66]
[1764025639957,0.7,139.22,139.19,3.43970099]
[1764025640159,3.18,139.21,139.19,3.43970099]
[1764025641558,3.18,139.21,139.19,65.93970099]
[1764025643344,3.18,139.21,139.19,63.16]
[1764025643640,3.18,139.21,139.19,65.93970099]
[1764025643857,0.7,139.22,139.19,65.93970099]
[1764025644071,3.18,139.2,139.19,73.12412515]
[1764025644246,3.18,139.2,139.19,72.46412515]
[1764025644743,3.18,139.2,139.19,73.11412515]
[1764025646339,3.18,139.2,139.19,65.92970099]
[1764025647247,3.18,139.2,139.19,73.11412515]
[1764025648171,3.18,139.2,139.19,65.92970099]
[1764025648353,3.18,139.2,139.19,73.11412515]
[1764025651554,19.08856499,139.25,139.19,91.07518557]
[1764025651755,0.71,139.25,139.23,2.77970099]
[1764025652072,3.18,139.24,139.23,2.77970099]
[1764025652274,3.18,139.24,139.23,3.42970099]
[1764025652846,3.18,139.26,139.23,3.42970099]
[1764025653060,3.18,139.26,139.24,3.42970099]
[1764025653268,3.18,139.26,139.24,7.83165078]
[1764025653582,12.29964591,139.25,139.2,62.5]
[1764025653752,2.77970099,139.24,139.2,62.5]
[1764025653955,3.48970099,139.24,139.2,62.5]
[1764025654264,11.58964591,139.25,139.2,65.92970099]
[1764025654462,0.71,139.24,139.21,0.65]
[1764025654857,11.58964591,139.25,139.21,10.61293234]
[1764025655177,3.18,139.24,139.22,3.42970099]
[1764025655553,3.18,139.24,139.22,0.65]
[1764025656562,3.18,139.24,139.22,12.17357507]
[1764025659382,3.18,139.24,139.22,70.33256969]
[1764025660681,7.52100538,139.24,139.22,62.5]
[1764025660872,5.05100538,139.23,139.22,62.5]
[1764025661062,0.71,139.23,139.22,62.5]
[1764025663586,5.05100538,139.23,139.22,62.5]
[1764025664666,0.71,139.23,139.22,62.5]
[1764025665277,0.71,139.23,139.2,63.15]
[1764025666875,0.71,139.23,139.2,62.5]
[1764025667082,0.71,139.23,139.21,0.65]
[1764025668592,5.05100538,139.23,139.2,62.5]
[1764025668783,5.05100538,139.23,139.2,63.16]
[1764025669798,0.71,139.23,139.2,63.16]
[1764025670183,5.05100538,139.23,139.2,63.16]
[1764025672296,11.523375,139.23,139.2,62.5]
[1764025672484,4.34100538,139.21,139.17,62.5]
[1764025672680,4.34100538,139.21,139.16,0.72]
[1764025672681,4.34100538,139.19,139.16,0.72]
[1764025673098,0.72,139.18,139.14,74.22782643]
[1764025673301,3.18,139.17,139.15,0.72]
[1764025675492,3.9,139.17,139.14,86.91568505]
[1764025675704,3.9,139.17,139.14,86.91580988]
[1764025676097,3.9,139.17,139.14,86.19580988]
[1764025676302,3.9,139.17,139.15,0.72]
[1764025677801,3.18,139.17,139.15,0.72]
[1764025679028,3.18,139.17,139.15,7.90643626]
[1764025679492,3.18,139.17,139.16,0.72]
[1764025679895,3.18,139.17,139.15,0.72]
[1764025681426,3.9,139.17,139.15,0.72]
[1764025681718,3.18,139.17,139.15,0.72]
[1764025683188,3.18,139.17,139.15,63.22]
[1764025683584,3.18,139.17,139.15,62.5]
[1764025683585,0.72,139.16,139.15,62.5]
[1764025684591,9.52994492,139.18,139.15,62.5]
[1764025684815,3.18,139.17,139.15,63.22]
[1764025686393,13.8709503,139.16,139.15,62.5]
[1764025686794,35.48400458,139.16,139.14,0.2]
[1764025687004,5.06100538,139.15,139.14,0.2]
[1764025687598,0.72,139.15,139.14,0.2]
[1764025687807,35.48400458,139.16,139.14,0.2]
[1764025688200,31.1429992,139.16,139.14,0.2]
[1764025690098,35.48400458,139.16,139.14,0.2]
[1764025691022,34.76400458,139.16,139.14,0.2]
[1764025691222,0.72,139.15,139.14,0.2]
[1764025691602,35.48400458,139.16,139.14,0.2]
[1764025692026,31.1429992,139.16,139.14,0.2]
[1764025695409,3.18,139.15,139.14,0.2]
[1764025701927,3.18,139.15,139.14,0.92]
[1764025702315,3.18,139.15,139.14,0.2]
[1764025706031,9.49994492,139.16,139.14,0.2]
[1764025706430,3.18,139.15,139.14,0.2]
[1764025706609,9.49994492,139.16,139.14,0.2]
[1764025706810,3.18,139.15,139.14,0.2]
[1764025707432,3.18,139.15,139.14,0.87]
[1764025708633,21.61305428,139.17,139.14,8.05700589]
[1764025708929,3.18,139.16,139.15,0.67]
[1764025709235,3.18,139.16,139.14,8.05700589]
[1764025710334,3.18,139.16,139.15,0.67]
[1764025711429,16.998864,139.2,139.15,74.69749477]
[1764025711613,3.18,139.2,139.17,4.34100538]
[1764025711814,3.18,139.2,139.18,0.67]
[1764025713441,3.18,139.2,139.19,7.18442416]
[1764025713823,8.80994492,139.25,139.19,92.65648996]
[1764025714016,24.78216021,139.24,139.21,4.34100538]
[1764025714221,3.18,139.24,139.2,5.01100538]
[1764025714543,3.18,139.24,139.21,0.67]
[1764025714747,3.18,139.24,139.21,5.01100538]
[1764025714927,3.18,139.24,139.21,12.19391918]
[1764025715124,3.18,139.24,139.22,0.67]
[1764025715322,3.18,139.24,139.21,7.8529138]
[1764025715323,3.87,139.24,139.21,7.8529138]
[1764025715528,3.18,139.24,139.2,74.02469104]
[1764025715718,3.18,139.24,139.22,0.67]
[1764025717547,12.27874527,139.23,139.2,62.5]
[1764025717723,2.77880035,139.22,139.2,62.5]
[1764025717924,3.18,139.21,139.2,62.5]
[1764025718135,3.18,139.21,139.19,0.67]
[1764025718443,3.18,139.21,139.19,7.85422334]
[1764025720548,5.95880035,139.21,139.19,62.5]
[1764025720749,3.46880035,139.2,139.19,62.5]
[1764025721138,5.95880035,139.21,139.19,62.5]
[1764025721341,5.95880035,139.21,139.19,63.17]
[1764025721536,3.18,139.21,139.19,63.17]
[1764025722857,3.18,139.21,139.2,0.67]
[1764025723258,3.18,139.21,139.19,70.35438636]
[1764025724653,3.18,139.21,139.19,63.17]
[1764025724853,5.95880035,139.21,139.19,62.5]
[1764025725157,0.69,139.2,139.19,62.5]
[1764025725328,12.27874527,139.2,139.16,7.85574395]
[1764025725530,12.27874527,139.2,139.16,70.35574395]
[1764025725747,0.69,139.19,139.16,70.35574395]
[1764025726053,3.18,139.18,139.16,70.35574395]
[1764025726256,3.18,139.18,139.16,69.68574395]
[1764025726463,3.18,139.18,139.17,0.67]
[1764025726761,3.18,139.18,139.16,70.35574395]
[1764025731340,3.18,139.18,139.16,63.17]
[1764025732436,0.68,139.17,139.16,62.5]
[1764025733572,25.11880892,139.2,139.16,70.34584653]
[1764025733742,3.18,139.18,139.17,0.66]
[1764025734070,5.95880035,139.18,139.16,62.5]
[1764025734240,6.66880035,139.18,139.16,62.5]
[1764025735179,3.89,139.18,139.16,62.5]
[1764025737264,25.11880892,139.2,139.16,62.5]
[1764025737476,3.18,139.19,139.17,0.66]
[1764025739572,3.18,139.19,139.17,63.16]
[1764025740768,25.82880892,139.2,139.17,63.16]
[1764025740967,3.18,139.19,139.17,63.16]
[1764025742045,0.71,139.18,139.17,62.5]
[1764025742282,3.18,139.18,139.17,63.16]
[1764025742946,3.18,139.18,139.17,70.34545663]
[1764025744849,3.18,139.19,139.17,70.34545663]
[1764025745048,3.18,139.19,139.18,0.66]
[1764025745955,17.018864,139.22,139.18,70.3445482]
[1764025746156,3.18,139.21,139.18,70.3445482]
[1764025746479,3.18,139.21,139.19,0.66]
[1764025746653,5.95880035,139.21,139.19,62.5]
[1764025746853,0.71,139.2,139.19,62.5]
[1764025747071,6.66880035,139.21,139.19,62.5]
[1764025748682,3.18,139.21,139.2,0.66]
[1764025749974,3.18,139.21,139.2,7.84390804]
[1764025750479,3.18,139.23,139.2,73.12270839]
[1764025750656,3.18,139.23,139.21,0.66]
[1764025751981,3.18,139.23,139.21,7.84314889]
[1764025752656,3.18,139.23,139.21,0.66]
[1764025753253,3.18,139.23,139.21,7.84299687]
[1764025753657,3.18,139.23,139.22,0.66]
[1764025753858,3.18,139.23,139.22,63.16]
[1764025756865,3.18,139.23,139.22,70.34287602]
[1764025759185,3.18,139.23,139.22,73.12167637]
[1764025759683,3.18,139.25,139.22,73.12167637]
[1764025759880,3.18,139.25,139.23,3.43880035]
[1764025760181,3.18,139.25,139.23,65.93880035]
[1764025760388,3.18,139.25,139.24,0.66]
[1764025761474,3.18,139.25,139.23,70.34201113]
[1764025763068,3.18,139.25,139.23,62.5]
[1764025763069,3.85,139.25,139.23,62.5]
[1764025763984,3.18,139.25,139.23,63.17]
[1764025764824,3.85,139.25,139.23,62.5]
[1764025765977,6.62880035,139.25,139.23,62.5]
[1764025766194,6.62880035,139.25,139.22,62.5]
[1764025766195,13.14016722,139.25,139.22,62.5]
[1764025766491,2.77880035,139.23,139.22,62.5]
[1764025766983,3.44880035,139.23,139.22,62.5]
[1764025767293,2.77880035,139.24,139.22,62.5]
[1764025767490,6.62880035,139.25,139.22,63.17]
[1764025767678,3.85,139.25,139.22,63.17]
[1764025770905,3.85,139.25,139.22,62.5]
[1764025770906,5.95880035,139.25,139.22,62.5]
[1764025771194,0.67,139.24,139.22,62.5]
[1764025771987,6.62880035,139.25,139.22,63.17]
[1764025772189,3.85,139.25,139.22,63.17]
[1764025772398,5.95880035,139.25,139.22,62.5]
[1764025772582,0.67,139.24,139.22,62.5]
[1764025773499,2.77880035,139.23,139.22,62.5]
[1764025773887,3.44880035,139.23,139.22,62.5]
[1764025775593,12.25874527,139.23,139.22,62.5]
[1764025775794,19.44110539,139.23,139.22,62.5]
[1764025776616,8.80994492,139.22,139.18,70.35478091]
[1764025776928,5.95880035,139.21,139.18,63.17]
[1764025778318,5.95880035,139.21,139.18,62.5]
[1764025778494,3.18,139.21,139.18,63.17]
[1764025778699,7.52430647,139.21,139.18,63.17]
[1764025779395,7.52430647,139.21,139.19,0.67]
[1764025779828,8.19430647,139.21,139.18,63.17]
[1764025780699,7.52430647,139.21,139.19,0.67]
[1764025782627,7.52430647,139.21,139.18,62.5]
[1764025782833,8.19430647,139.21,139.18,63.17]
[1764025783649,8.19430647,139.21,139.16,63.17]
[1764025783650,5.01430647,139.2,139.16,63.17]
[1764025783816,4.34430647,139.19,139.16,62.5]
[1764025784011,3.18,139.18,139.16,62.5]
[1764025784211,3.18,139.18,139.17,0.67]
[1764025784737,3.18,139.18,139.17,12.1997631]
[1764025785313,3.18,139.18,139.17,7.85545663]
[1764025787144,3.18,139.18,139.17,70.35545663]
[1764025789042,3.18,139.18,139.17,62.5]
[1764025789222,8.18430647,139.18,139.15,63.19]
[1764025789622,0.66,139.17,139.14,8.07676851]
[1764025791142,5.00430647,139.16,139.14,0.2]
[1764025791340,3.18,139.15,139.14,0.2]
[1764025791546,3.84,139.15,139.14,0.2]
[1764025793745,8.18430647,139.15,139.14,0.2]
[1764025793947,3.84,139.15,139.14,0.2]
[1764025795028,24.18074078,139.15,139.14,0.2]
[1764025795445,40.48960478,139.15,139.14,0.2]
[1764025795645,43.37196831,139.15,139.14,0.2]
[1764025798528,27.06310431,139.15,139.14,0.2]
[1764025800833,25.11880892,139.11,139.1,0.2]
[1764025801030,32.64311539,139.11,139.1,0.2]
[1764025801258,33.30311539,139.11,139.1,0.2]
[1764025801460,36.1865178,139.11,139.1,0.2]
[1764025802656,43.37507361,139.11,139.1,0.2]
[1764025806460,11.69334733,139.11,139.1,0.89]
[1764025806664,8.80994492,139.1,139.09,0.1]
[1764025806840,25.34763046,139.1,139.09,0.1]
[1764025807036,3.18,139.1,139.09,0.79]
[1764025807265,0.66,139.15,139.09,0.79]
[1764025807566,13.15425139,139.13,139.09,0.79]
[1764025807863,8.80994492,139.13,139.09,0.79]
[1764025808057,11.53027945,139.16,139.09,5.13430647]
[1764025808267,11.98994492,139.15,139.09,5.13430647]
[1764025808447,4.34430647,139.14,139.1,0.69]
[1764025808847,35.48546304,139.15,139.1,0.69]
[1764025809043,4.34430647,139.14,139.1,0.69]
[1764025809244,20.65317047,139.14,139.1,0.69]
[1764025809975,4.34430647,139.13,139.1,0.69]
[1764025810147,3.18,139.12,139.1,12.22335665]
[1764025810462,3.18,139.12,139.11,4.34430647]
[1764025810661,3.18,139.12,139.11,5.03430647]
[1764025810864,3.18,139.14,139.11,5.03430647]
[1764025811160,3.18,139.14,139.12,7.8780391]
[1764025811362,7.84379453,139.21,139.13,4.34430647]
[1764025811567,8.80994492,139.18,139.14,0.69]
[1764025811763,4.34430647,139.16,139.14,0.69]
[1764025814383,13.15425139,139.16,139.14,0.69]
[1764025814685,8.80994492,139.16,139.14,0.69]
[1764025815054,13.15425139,139.16,139.14,0.69]
[1764025815370,20.99942761,139.18,139.14,0.69]
[1764025815553,3.18,139.17,139.14,12.22129976]
[1764025815751,3.18,139.16,139.14,12.22129976]
[1764025815966,3.18,139.16,139.15,0.69]
[1764025816375,3.18,139.16,139.15,7.87648939]
[1764025817262,3.18,139.16,139.15,0.69]
[1764025817456,7.52430647,139.16,139.13,63.19]
[1764025817670,4.34430647,139.15,139.13,63.19]
[1764025817974,3.18,139.16,139.13,62.5]
[1764025817975,7.52430647,139.16,139.13,62.5]
[1764025818162,4.34430647,139.15,139.14,0.69]
[1764025819173,4.34430647,139.15,139.13,63.19]
[1764025819750,4.34430647,139.15,139.13,0.69]
[1764025821468,4.34430647,139.15,139.12,0.69]
[1764025821681,4.34430647,139.13,139.1,0.69]
[1764025821989,0.66,139.14,139.09,0.1]
[1764025821990,4.34430647,139.11,139.09,0.1]
[1764025822563,4.34430647,139.1,139.09,0.1]
[1764025823168,13.15425139,139.11,139.09,0.1]
[1764025823571,13.15425139,139.11,139.09,0.82]
[1764025828488,8.80994492,139.11,139.09,0.82]
[1764025828806,16.308864,139.12,139.09,74.85378521]
[1764025828969,20.44429957,139.15,139.09,74.13378521]
[1764025829164,4.34430647,139.13,139.09,69.78947874]
[1764025829387,4.34430647,139.1,139.09,0.1]
[1764025829668,23.83317047,139.1,139.09,0.1]
[1764025829874,23.83317047,139.1,139.09,0.82]
[1764025831591,19.488864,139.1,139.09,0.82]
[1764025831977,3.18,139.1,139.09,0.82]
[1764025832420,3.18,139.1,139.09,0.1]
[1764025832603,7.52430647,139.1,139.09,0.1]
[1764025833099,36.65134362,139.12,139.09,0.82]
[1764025833297,3.18,139.1,139.09,0.82]
[1764025834498,16.308864,139.12,139.09,74.85389594]
[1764025834800,3.18,139.11,139.09,70.50958947]
[1764025834994,3.18,139.11,139.1,0.72]
[1764025836521,3.18,139.11,139.1,63.22]
[1764025837894,17.03425139,139.11,139.09,0.1]
[1764025838092,5.04430647,139.1,139.09,0.1]
[1764025838604,3.48499898,139.1,139.09,0.1]
[1764025840312,2.78499898,139.1,139.09,0.1]
[1764025841898,2.78499898,139.1,139.09,0.82]
[1764025842324,2.78499898,139.1,139.09,0.1]
[1764025843603,2.78499898,139.1,139.09,62.6]
[1764025843908,9.97407158,139.1,139.09,62.6]
[1764025844489,19.4840165,139.1,139.09,62.6]
[1764025844902,19.4840165,139.1,139.09,0.1]
[1764025845103,35.7928805,139.1,139.09,0.1]
[1764025846522,39.55380935,139.1,139.09,0.1]
[1764025847108,35.7928805,139.1,139.09,0.1]
[1764025848225,27.9038079,139.1,139.09,0.1]
[1764025848428,28.29880892,139.1,139.09,0.77]
[1764025848726,28.29880892,139.1,139.09,0.1]
[1764025849727,3.18,139.1,139.09,0.77]
[1764025851931,3.18,139.1,139.09,0.1]
[1764025852128,3.18,139.1,139.09,0.77]
[1764025852432,27.9038079,139.11,139.09,0.77]
[1764025852727,3.18,139.1,139.09,0.77]
[1764025853429,27.9038079,139.11,139.09,0.77]
[1764025853933,3.18,139.1,139.09,0.77]
[1764025859918,2.78499898,139.12,139.09,0.77]
[1764025860118,3.18,139.11,139.09,0.77]
[1764025860640,3.18,139.11,139.09,63.27]
[1764025861233,2.78499898,139.14,139.09,70.4594896]
[1764025861434,3.18,139.13,139.1,0.65]
[1764025862620,3.18,139.13,139.1,7.83901067]
[1764025863144,3.18,139.13,139.11,0.65]
[1764025867224,3.18,139.13,139.11,63.15]
[1764025867725,3.18,139.13,139.11,62.5]
[1764025867921,3.18,139.13,139.12,0.65]
[1764025868125,8.80994492,139.18,139.12,65.93499898]
[1764025868334,3.18,139.17,139.13,3.43499898]
[1764025868536,3.18,139.17,139.13,0.65]
[1764025868736,3.18,139.17,139.14,0.65]
[1764025868953,3.18,139.17,139.14,63.15]
[1764025869154,3.18,139.17,139.14,70.33697733]
[1764025869328,3.18,139.17,139.15,0.65]
[1764025869650,3.18,139.17,139.15,63.15]
[1764025870451,6.65499898,139.17,139.15,62.5]
[1764025870626,3.47499898,139.16,139.15,62.5]
[1764025871449,16.308864,139.16,139.15,62.5]
[1764025871641,3.18,139.16,139.15,63.15]
[1764025872857,6.65499898,139.16,139.15,62.5]
[1764025873358,6.65499898,139.16,139.13,0.65]
[1764025873359,5.96499898,139.16,139.13,0.65]
[1764025874030,3.18,139.16,139.13,0.65]
[1764025874733,3.18,139.16,139.13,7.8373779]
[1764025875147,25.11880892,139.18,139.14,0.65]
[1764025875337,0.69,139.21,139.17,2.78499898]
[1764025875554,3.87,139.21,139.17,2.78499898]
[1764025875744,3.87,139.21,139.16,2.78499898]
[1764025876654,3.87,139.21,139.17,7.18545663]
[1764025877229,3.18,139.21,139.18,2.78499898]
[1764025877662,3.18,139.21,139.19,2.78499898]
[1764025877836,3.18,139.21,139.18,2.78499898]
[1764025878736,0.69,139.23,139.19,7.18442416]
[1764025878951,3.18,139.22,139.19,7.18442416]
[1764025879153,3.18,139.22,139.16,2.78499898]
[1764025879358,0.69,139.21,139.16,7.18597298]
[1764025879565,0.69,139.21,139.16,9.97097196]
[1764025882073,0.69,139.21,139.16,174.37097196]
[1764025884183,0.69,139.21,139.16,171.58597298]
[1764025885041,19.488864,139.22,139.16,171.58597298]
[1764025885246,6.62499898,139.22,139.16,174.37097196]
[1764025885848,0.66,139.21,139.16,174.37097196]
[1764025886470,0.66,139.21,139.16,195.99097196]
[1764025886655,0.66,139.21,139.16,174.37097196]
[1764025890174,0.66,139.21,139.16,171.58597298]
[1764025891248,3.44499898,139.21,139.16,171.58597298]
[1764025892362,3.44499898,139.21,139.16,189.55090543]
[1764025892568,3.18,139.22,139.17,2.78499898]
[1764025892876,6.62499898,139.22,139.16,192.33590441]
[1764025893973,12.2549439,139.21,139.16,62.5]
[1764025894275,0.2,139.25,139.16,205.85971868]
[1764025894456,0.2,139.25,139.21,7.18339199]
[1764025894457,0.86,139.25,139.21,7.18339199]
[1764025894658,0.86,139.25,139.21,69.68339199]
[1764025895160,0.86,139.25,139.21,7.18339199]
[1764025896370,0.86,139.25,139.2,7.18390804]
[1764025896572,0.86,139.25,139.2,27.92867713]
[1764025896780,0.2,139.25,139.2,25.14367815]
[1764025896967,0.86,139.25,139.2,25.14367815]
[1764025897683,0.2,139.25,139.24,2.78499898]
[1764025897981,0.2,139.25,139.24,65.28499898]
[1764025898657,0.2,139.25,139.24,74.02068186]
[1764025898874,0.2,139.25,139.24,62.5]
[1764025899581,0.2,139.25,139.23,7.1823325]
[1764025899891,0.2,139.25,139.22,7.18270333]
[1764025900985,5.19883757,139.25,139.21,69.68322597]
[1764025901382,4.33883757,139.23,139.2,7.18378684]
[1764025901687,4.33883757,139.23,139.19,69.68431428]
[1764025901861,4.99883757,139.23,139.19,69.68431428]
[1764025902258,4.99883757,139.22,139.19,7.18431428]
[1764025902785,0.66,139.24,139.18,7.18494036]
[1764025903080,4.99883757,139.24,139.18,74.02377793]
[1764025903274,4.99883757,139.24,139.18,69.68494036]
[1764025903457,4.99883757,139.24,139.18,91.98612884]
[1764025904583,4.99883757,139.23,139.18,87.64729127]
[1764025905482,0.66,139.23,139.18,87.64729127]
[1764025905789,0.66,139.23,139.18,91.98612884]
[1764025906868,3.18,139.24,139.18,91.98612884]
[1764025907181,3.18,139.24,139.19,4.33883757]
[1764025907390,3.84,139.24,139.19,4.33883757]
[1764025907762,3.84,139.24,139.2,7.18390804]
[1764025907986,3.18,139.24,139.2,7.18390804]
[1764025908179,3.18,139.24,139.2,29.48251572]
[1764025908887,3.18,139.24,139.2,193.88251572]
[1764025909272,0.2,139.25,139.21,4.33883757]
[1764025909473,0.2,139.25,139.21,164.4]
[1764025910001,0.2,139.25,139.22,29.47890364]
[1764025910286,0.2,139.25,139.22,25.14006607]
[1764025910498,0.86,139.25,139.22,7.18287602]
[1764025911090,0.2,139.25,139.22,7.18287602]
[1764025913006,0.7,139.24,139.22,7.18287602]
[1764025913395,0.7,139.24,139.21,171.58324709]
[1764025914017,5.03883757,139.24,139.21,164.4]
[1764025914225,5.03883757,139.24,139.21,62.5]
[1764025914437,0.7,139.23,139.21,62.5]
[1764025915136,3.18,139.24,139.21,69.68329066]
[1764025915305,3.88,139.24,139.21,69.68329066]
[1764025916501,3.18,139.24,139.21,69.68329066]
[1764025916706,0.2,139.25,139.23,4.33883757]
[1764025917041,0.2,139.25,139.24,11.52068186]
[1764025917220,0.2,139.25,139.24,7.18184429]
[1764025924020,0.9,139.25,139.23,7.18218352]
[1764025924635,0.2,139.25,139.24,4.33883757]
[1764025926036,0.2,139.25,139.24,11.52068186]
[1764025926643,0.7,139.28,139.26,62.3]
[1764025927044,3.38,139.29,139.26,66.63883757]
[1764025927237,4.08,139.29,139.26,66.63883757]
[1764025927428,0.9,139.29,139.26,66.63883757]
[1764025928133,0.9,139.29,139.27,7.18029726]
[1764025930649,0.7,139.28,139.27,7.18029726]
[1764025931020,0.7,139.28,139.26,62.3]
[1764025931223,4.33883757,139.27,139.21,7.18318267]
[1764025931429,4.33883757,139.24,139.21,69.68318267]
[1764025931636,5.03883757,139.26,139.21,69.68318267]
[1764025932021,0.7,139.25,139.21,69.68318267]
[1764025932748,4.33883757,139.24,139.21,62.5]
[1764025933260,0.7,139.23,139.21,69.68320679]
[1764025933955,0.7,139.23,139.18,127.38044386]
[1764025933956,0.7,139.23,139.2,7.18370638]
[1764025934348,0.7,139.25,139.2,11.52254395]
[1764025934642,29.45764649,139.27,139.2,49.94347649]
[1764025934643,17.008864,139.27,139.2,49.94347649]
[1764025934841,17.008864,139.27,139.22,4.33883757]
[1764025935215,0.7,139.26,139.22,4.33883757]
[1764025936338,3.18,139.28,139.22,66.83883757]
[1764025936533,0.7,139.28,139.24,4.33883757]
[1764025936732,0.7,139.28,139.25,7.18132854]
[1764025937242,0.7,139.28,139.25,11.52016611]
[1764025937749,0.9,139.29,139.25,29.47348747]
[1764025938326,0.7,139.28,139.25,29.47348747]
[1764025939158,0.2,139.29,139.25,29.47348747]
[1764025939338,0.9,139.29,139.25,29.47348747]
[1764025940355,0.7,139.28,139.25,7.18132854]
[1764025940729,5.03883757,139.28,139.24,69.68167946]
[1764025941054,5.03883757,139.27,139.24,69.68167946]
[1764025941352,0.7,139.27,139.24,69.68167946]
[1764025944058,16.308864,139.26,139.24,62.5]
[1764025944442,0.71,139.25,139.24,62.5]
[1764025951446,3.89,139.27,139.24,74.02056879]
[1764025951661,0.71,139.27,139.24,74.02056879]
[1764025952161,3.18,139.28,139.25,4.33883757]
[1764025952359,3.89,139.28,139.25,164.4]
[1764025952871,0.2,139.29,139.26,11.51965043]
[1764025953071,0.2,139.29,139.27,4.33883757]
[1764025953248,0.2,139.29,139.27,66.83883757]
[1764025954466,0.2,139.29,139.28,7.17978173]
[1764025954653,0.2,139.29,139.28,69.67978173]
[1764025956569,0.2,139.29,139.24,7.18162688]
[1764025956777,4.33883757,139.27,139.24,62.5]
[1764025957067,4.33883757,139.26,139.24,62.5]
[1764025957255,7.51883757,139.26,139.21,65.68]
[1764025957454,0.71,139.25,139.21,65.68]
[1764025958480,0.71,139.25,139.22,7.18273446]
[1764025958973,0.71,139.25,139.21,77.20207493]
[1764025960667,0.71,139.25,139.21,75.64132871]
[1764025960970,0.71,139.25,139.21,72.46132871]
[1764025961666,0.71,139.25,139.21,69.68323736]
[1764025962048,0.71,139.25,139.21,171.58323736]
[1764025962351,0.71,139.25,139.21,69.68323736]
[1764025962666,3.48809135,139.25,139.21,69.68323736]
[1764025962851,3.48809135,139.25,139.21,62.5]
[1764025963054,0.71,139.24,139.21,62.5]
[1764025963560,0.71,139.24,139.21,69.68338187]
[1764025964768,0.71,139.24,139.21,62.5]
[1764025965081,2.77809135,139.23,139.2,62.5]
[1764025965578,0.71,139.22,139.19,7.18422501]
[1764025969194,0.68,139.24,139.19,27.92337678]
[1764025969989,0.68,139.24,139.2,2.77809135]
[1764025970564,0.68,139.24,139.2,167.17809135]
[1764025970881,0.68,139.24,139.21,7.18339199]
[1764025974210,0.68,139.24,139.21,171.58339199]
[1764025975485,0.67,139.25,139.21,189.54187198]
[1764025978495,0.67,139.25,139.21,171.58339199]
[1764025979017,3.44809135,139.25,139.21,171.58339199]
[1764025979915,3.44809135,139.24,139.21,171.58339199]
[1764025980092,3.44809135,139.24,139.21,69.68339199]
[1764025980291,0.67,139.23,139.21,62.5]